bitfinex-derivatives/quotes_BNBF0:USTF0_20250709
["timestamp","ask_amount","ask_price","bid_price","bid_amount"]
[1752086430953,3.35702891,665.65,665.14,1.53627493]
[1752086431152,3.35702891,665.65,665.15,1.53627493]
[1752086431456,3.35702891,665.64,665.16,1.53627493]
[1752086431757,3.35702891,665.64,665.1,1.943]
[1752086432058,0.2613054,666.25,665.11,1.53627036]
[1752086432059,3.35702891,665.65,665.11,1.53627036]
[1752086432258,3.35702891,665.66,665.12,1.53627036]
[1752086432556,3.35702891,665.65,665.13,1.53627036]
[1752086432754,3.35702891,665.65,665.14,1.53627036]
[1752086433053,3.35702891,665.65,665.1,1.943]
[1752086433054,3.35702891,665.66,665.15,1.53627036]
[1752086433257,3.35702891,665.66,665.1,1.943]
[1752086433258,3.35702891,665.66,665.16,1.53627036]
[1752086433459,3.35702891,665.66,665.1,1.943]
[1752086433654,3.35702891,665.66,665.11,1.53627567]
[1752086433858,3.35702891,665.66,665.12,1.53627567]
[1752086434158,3.35702891,665.66,665.13,1.53627567]
[1752086434454,3.35702891,665.66,665.14,1.53627567]
[1752086434658,3.35702891,665.74,665.15,1.53627567]
[1752086434855,3.35702891,665.74,665.16,1.53627567]
[1752086435060,3.35702891,665.74,665.1,1.943]
[1752086435061,3.35702891,665.74,665.17,1.53627567]
[1752086435255,3.35702891,665.74,665.1,1.943]
[1752086435459,3.35702891,665.85,665.11,1.5363438]
[1752086435659,3.35702891,665.85,665.12,1.5363438]
[1752086435858,3.35702891,665.85,665.13,1.5363438]
[1752086436159,3.35702891,665.85,665.14,1.5363438]
[1752086436359,3.35702891,665.85,665.15,1.5363438]
[1752086436557,3.35702891,665.85,665.16,1.5363438]
[1752086436758,3.35702891,665.85,665.17,1.5363438]
[1752086436961,3.35702891,665.85,665.1,1.943]
[1752086437158,3.35702891,665.85,665.11,1.53638421]
[1752086437459,3.35702891,665.85,665.12,1.53638421]
[1752086437657,3.35702891,665.85,665.13,1.53638421]
[1752086437858,3.35702891,665.85,665.14,1.53638421]
[1752086438060,3.35702891,665.85,665.15,1.53638421]
[1752086438256,3.35702891,665.84,665.16,1.53638421]
[1752086438458,3.35702891,665.84,665.17,1.53638421]
[1752086438761,3.35702891,665.89,665.18,1.53638421]
[1752086438959,3.35702891,665.89,665.19,1.53654113]
[1752086439158,3.35702891,665.9,665.2,1.53654113]
[1752086439460,3.35702891,665.85,665.1,1.943]
[1752086439771,3.35702891,665.85,665.11,1.53699464]
[1752086439971,3.35702891,665.85,665.12,1.53699464]
[1752086440167,3.35702891,665.85,665.13,1.53699464]
[1752086440467,3.35702891,665.85,665.14,1.53699464]
[1752086440670,3.35702891,665.85,665.15,1.53699464]
[1752086440966,3.35702891,665.85,665.16,1.53699464]
[1752086441171,3.35702891,665.85,665.17,1.53699464]
[1752086441369,3.35702891,665.84,665.18,1.53699464]
[1752086441572,3.35702891,665.84,665.19,1.53699464]
[1752086441869,3.35702891,665.83,665.1,1.943]
[1752086442072,3.35702891,665.83,665.11,1.53733417]
[1752086442269,3.35702891,665.83,665.12,1.53733417]
[1752086442471,3.35702891,665.83,665.13,1.53733417]
[1752086442675,3.35702891,665.83,665.14,1.53733417]
[1752086442872,3.35702891,665.83,665.15,1.53733417]
[1752086443072,3.35702891,665.83,665.16,1.53733417]
[1752086443276,3.35702891,665.83,665.17,1.53733417]
[1752086443477,3.35702891,665.83,665.18,1.53733417]
[1752086443682,3.35702891,665.83,665.19,1.53733417]
[1752086443977,3.35702891,665.83,665.1,1.943]
[1752086444180,3.35702891,665.83,665.11,1.53755212]
[1752086444377,3.35702891,665.83,665.12,1.53755212]
[1752086444575,3.35702891,665.81,665.13,1.53755212]
[1752086444777,3.35702891,665.81,665.14,1.53755212]
[1752086444977,3.35702891,665.81,665.15,1.53755212]
[1752086445280,3.35702891,665.7,665.16,1.53755212]
[1752086445477,3.35702891,665.7,665.17,1.53755212]
[1752086445682,3.35702891,665.71,665.18,1.53755212]
[1752086445879,3.35702891,665.71,665.1,1.943]
[1752086446081,3.35702891,665.71,665.11,1.53755385]
[1752086446280,3.35702891,665.71,665.12,1.53755385]
[1752086446480,3.35702891,665.71,665.13,1.53755385]
[1752086446681,3.35702891,665.71,665.14,1.53755385]
[1752086446881,3.35702891,665.71,665.15,1.53755385]
[1752086447081,3.35702891,665.71,665.16,1.53755385]
[1752086447383,3.35702891,665.71,665.17,1.53755385]
[1752086447577,3.35702891,665.7,665.18,1.53755385]
[1752086447779,3.35702891,665.64,665.1,1.943]
[1752086447977,3.35702891,665.64,665.11,1.53755236]
[1752086448180,3.35702891,665.64,665.12,1.53755236]
[1752086448380,3.35702891,665.64,665.13,1.53755236]
[1752086448584,3.35702891,665.63,665.14,1.53755236]
[1752086448782,3.35702891,665.63,665.15,1.53755236]
[1752086448981,3.35702891,665.6,665.16,1.53755236]
[1752086449179,3.35702891,665.6,665.1,1.943]
[1752086449382,3.35702891,665.6,665.11,1.5375516]
[1752086449582,3.35702891,665.6,665.12,1.5375516]
[1752086449882,3.35702891,665.59,665.13,1.5375516]
[1752086450080,3.35702891,665.59,665.14,1.5375516]
[1752086450279,3.35702891,665.59,665.15,1.5375516]
[1752086450479,3.35702891,665.59,665.16,1.5375516]
[1752086450680,3.35702891,665.59,665.1,1.943]
[1752086450881,0.2613054,666.25,665.11,1.53755011]
[1752086450882,3.35702891,665.6,665.11,1.53755011]
[1752086451180,3.35702891,665.6,665.12,1.53755011]
[1752086451483,3.35702891,665.6,665.13,1.53755011]
[1752086451683,3.35702891,665.6,665.14,1.53755011]
[1752086451881,3.35702891,665.6,665.15,1.53755011]
[1752086452082,3.35702891,665.6,665.16,1.53755011]
[1752086452280,3.35702891,665.6,665.1,1.943]
[1752086452485,3.35702891,665.6,665.11,1.53754865]
[1752086452684,3.35702891,665.6,665.12,1.53754865]
[1752086452885,3.35702891,665.6,665.13,1.53754865]
[1752086453087,3.35702891,665.6,665.14,1.53754865]
[1752086453288,3.35702891,665.6,665.15,1.53754865]
[1752086453486,3.35702891,665.59,665.16,1.53754865]
[1752086453685,3.35702891,665.59,664.96,1.67900056]
[1752086453887,3.35702891,665.59,664.97,1.53754792]
[1752086454089,3.35702891,665.61,664.98,1.53754792]
[1752086454385,3.35702891,665.61,664.99,1.53754792]
[1752086454584,3.35702891,665.61,665.0,1.53754792]
[1752086454884,3.35702891,665.61,665.01,1.53754792]
[1752086455083,3.35702891,665.61,665.02,1.53754792]
[1752086455288,3.35702891,665.61,665.03,1.53754792]
[1752086455484,3.35702891,665.6,665.04,1.53754792]
[1752086455686,3.35702891,665.6,665.05,1.53754792]
[1752086455890,3.35702891,665.6,665.06,1.53754792]
[1752086456088,3.35702891,665.6,665.07,1.53754792]
[1752086456289,3.35702891,665.59,665.08,1.53754792]
[1752086456487,3.35702891,665.59,665.09,1.53754792]
[1752086456686,3.35702891,665.59,665.1,1.53754792]
[1752086456890,3.35702891,665.59,665.11,1.53754792]
[1752086457191,3.35702891,665.59,665.12,1.53754792]
[1752086457392,3.35702891,665.59,665.13,1.53754792]
[1752086457690,3.35702891,665.59,665.14,1.53754792]
[1752086457889,3.35702891,665.59,665.15,1.53754792]
[1752086458084,3.35702891,665.59,665.16,1.53754792]
[1752086458289,3.35702891,665.59,665.05,2.131]
[1752086458490,3.35702891,665.61,665.06,1.53755222]
[1752086458790,3.35702891,665.61,665.07,1.53755222]
[1752086458987,3.35702891,665.61,665.08,1.53755222]
[1752086459188,3.35702891,665.61,665.09,1.53755222]
[1752086459391,3.35702891,665.61,665.1,1.53755222]
[1752086459588,3.35702891,665.63,665.11,1.53755222]
[1752086459786,3.35702891,665.63,665.12,1.53755222]
[1752086459987,3.35702891,665.63,665.13,1.53755222]
[1752086460188,3.35702891,665.63,665.14,1.53755222]
[1752086460390,3.35702891,665.64,665.15,1.53755222]
[1752086460590,3.35702891,665.62,665.16,1.53755222]
[1752086460791,3.35702891,665.62,665.17,1.53755222]
[1752086460993,3.35702891,665.62,665.18,1.53755222]
[1752086461195,3.35702891,665.62,665.05,2.131]
[1752086461395,3.35702891,665.62,665.06,1.53755213]
[1752086461595,3.35702891,665.62,665.07,1.53755213]
[1752086461891,3.35702891,665.62,665.08,1.53755213]
[1752086462094,3.35702891,665.62,665.09,1.53755213]
[1752086462390,3.35702891,665.62,665.1,1.53755213]
[1752086462591,3.35702891,665.62,665.11,1.53755213]
[1752086462894,3.35702891,665.62,665.12,1.53755213]
[1752086463091,3.35702891,665.62,665.13,1.53755213]
[1752086463396,3.35702891,665.62,665.14,1.53755213]
[1752086463592,3.35702891,665.64,665.15,1.53755213]
[1752086463791,3.35702891,665.63,665.16,1.53755213]
[1752086463996,3.35702891,665.63,665.17,1.53755213]
[1752086464192,3.35702891,665.63,665.18,1.53755213]
[1752086464392,3.35702891,665.63,665.05,2.131]
[1752086464596,3.35702891,665.63,665.06,1.5375514]
[1752086464897,3.35702891,665.63,665.07,1.5375514]
[1752086465091,3.35702891,665.63,665.08,1.5375514]
[1752086465296,3.35702891,665.63,665.09,1.5375514]
[1752086465496,3.35702891,665.63,665.1,1.5375514]
[1752086465692,3.35702891,665.63,665.11,1.5375514]
[1752086465897,3.35702891,665.63,665.12,1.5375514]
[1752086466096,3.35702891,665.63,665.13,1.5375514]
[1752086466298,3.35702891,665.63,665.14,1.5375514]
[1752086466500,3.35702891,665.63,665.15,1.5375514]
[1752086466795,3.35702891,665.63,665.16,1.5375514]
[1752086466999,3.35702891,665.63,665.17,1.5375514]
[1752086467196,3.35702891,665.63,665.18,1.5375514]
[1752086467397,3.35702891,665.63,665.05,2.131]
[1752086467598,3.35702891,665.63,665.06,1.53755239]
[1752086467800,3.35702891,665.63,665.07,1.53755239]
[1752086468001,3.35702891,665.63,665.08,1.53755239]
[1752086468301,3.35702891,665.63,665.09,1.53755239]
[1752086468499,3.35702891,665.61,665.1,1.53755239]
[1752086468699,3.35702891,665.61,665.11,1.53755239]
[1752086469004,3.35702891,665.77,665.12,1.53755239]
[1752086469198,3.35702891,665.77,665.13,1.53755239]
[1752086469497,3.35702891,665.76,665.14,1.53755239]
[1752086469699,3.35702891,665.76,665.15,1.53755239]
[1752086469900,3.35702891,665.76,665.05,2.131]
[1752086470099,3.35702891,665.76,665.06,1.53760608]
[1752086470298,3.35702891,665.76,665.07,1.53760608]
[1752086470497,3.35702891,665.76,665.08,1.53760608]
[1752086470699,3.35702891,665.76,665.09,1.53760608]
[1752086470899,3.35702891,665.76,665.1,1.53760608]
[1752086471098,3.35702891,665.77,665.11,1.53760608]
[1752086471303,3.35702891,665.77,665.12,1.53760608]
[1752086471500,3.35702891,665.77,665.13,1.53760608]
[1752086471703,3.35702891,665.74,665.05,2.131]
[1752086471904,0.26155974,665.61,665.06,1.53819098]
[1752086472103,0.26155974,665.61,665.07,1.53819098]
[1752086472300,0.26155974,665.61,665.05,2.131]
[1752086472602,0.26155974,665.61,665.06,1.53788793]
[1752086472802,0.26155974,665.61,665.05,2.131]
[1752086473003,0.26155974,665.61,665.06,1.53788763]
[1752086473204,0.26155974,665.61,665.05,2.131]
[1752086473404,0.26155974,665.61,665.06,1.53763834]
[1752086473604,0.26155974,665.61,665.05,2.131]
[1752086473805,0.26155974,665.61,665.06,1.53763834]
[1752086474001,0.26155974,665.61,665.05,2.131]
[1752086492935,3.61858865,665.61,665.05,2.131]
[1752086494033,3.35702891,665.6,665.05,2.131]
[1752086494234,0.26155974,665.61,665.05,2.131]
[1752086506842,0.26155974,665.61,664.74,1.67900056]
[1752086507042,0.26155974,665.61,664.75,1.53582462]
[1752086507238,0.26155974,665.61,664.76,1.53582462]
[1752086507443,0.26155974,665.61,664.77,1.53582462]
[1752086507643,0.26155974,665.61,664.78,1.53582462]
[1752086507939,0.26155974,665.61,664.79,1.53582462]
[1752086508144,0.26155974,665.61,664.8,1.53582462]
[1752086508344,0.26155974,665.61,664.81,1.53582462]
[1752086508541,0.26155974,665.61,664.82,1.53582462]
[1752086508842,0.26155974,665.61,664.83,1.53582462]
[1752086509041,0.26155974,665.61,664.84,1.53582462]
[1752086509246,0.26155974,665.61,664.85,1.53582462]
[1752086509446,0.26155974,665.61,664.86,1.53582462]
[1752086509742,0.26155974,665.61,664.87,1.53582462]
[1752086510047,0.26155974,665.61,664.88,1.53582462]
[1752086510242,0.26155974,665.61,664.89,1.53582462]
[1752086510442,0.26155974,665.61,664.9,1.53582462]
[1752086510645,0.26155974,665.61,664.91,1.53582462]
[1752086510940,0.26155974,665.61,664.92,1.53582462]
[1752086511142,0.26155974,665.61,664.93,1.53582462]
[1752086511345,0.26155974,665.61,664.94,1.53582462]
[1752086511542,0.26155974,665.61,664.95,1.53582462]
[1752086511841,0.26155974,665.61,664.96,1.53582462]
[1752086512045,0.26155974,665.61,664.97,1.53582462]
[1752086512241,0.26155974,665.61,664.98,1.53582462]
[1752086512445,0.26155974,665.61,664.99,1.53582462]
[1752086512744,0.26155974,665.61,665.0,1.53582462]
[1752086512946,0.26155974,665.61,665.01,1.53582462]
[1752086513147,0.26155974,665.61,665.02,1.53582462]
[1752086513347,0.26155974,665.61,665.03,1.53582462]
[1752086513647,0.26155974,665.61,664.87,2.323]
[1752086513841,0.26155974,665.61,664.88,1.53611331]
[1752086514145,0.26155974,665.61,664.89,1.53611331]
[1752086514345,0.26155974,665.61,664.9,1.53611331]
[1752086514545,0.26155974,665.61,664.91,1.53611331]
[1752086514742,0.26155974,665.61,664.92,1.53611331]
[1752086514941,0.26155974,665.61,664.93,1.53611331]
[1752086515146,0.26155974,665.61,664.94,1.53611331]
[1752086515444,0.26155974,665.61,664.87,2.323]
[1752086515445,0.26155974,665.61,664.95,1.53611331]
[1752086515643,0.26155974,665.61,664.96,1.53611331]
[1752086515842,0.26155974,665.61,664.97,1.53611331]
[1752086516046,0.26155974,665.61,664.98,1.53611331]
[1752086516243,0.26155974,665.61,664.99,1.53611331]
[1752086516445,0.26155974,665.61,665.0,1.53611331]
[1752086516645,0.26155974,665.61,664.87,2.323]
[1752086516843,0.26155974,665.61,664.88,1.53646082]
[1752086517042,0.26155974,665.61,664.89,1.53646082]
[1752086517246,0.26155974,665.61,664.9,1.53646082]
[1752086517447,0.26155974,665.61,664.91,1.53646082]
[1752086517647,0.26155974,665.61,664.92,1.53646082]
[1752086517847,0.26155974,665.61,664.93,1.53646082]
[1752086518144,0.26155974,665.61,664.94,1.53646082]
[1752086518347,0.26155974,665.61,664.95,1.53646082]
[1752086518648,0.26155974,665.61,664.87,2.323]
[1752086518948,0.26155974,665.61,664.88,1.53657034]
[1752086519144,0.26155974,665.61,664.89,1.53657034]
[1752086519446,0.26155974,665.61,664.9,1.53657034]
[1752086519643,0.26155974,665.61,664.91,1.53657034]
[1752086519843,0.26155974,665.61,664.92,1.53657034]
[1752086520044,0.26155974,665.61,664.93,1.53657034]
[1752086520248,0.26155974,665.61,664.94,1.53657034]
[1752086520446,0.26155974,665.61,664.95,1.53657034]
[1752086520745,0.26155974,665.61,664.87,2.323]
[1752086520948,0.26155974,665.61,664.88,1.53664105]
[1752086521146,0.26155974,665.61,664.89,1.53664105]
[1752086521345,0.26155974,665.61,664.9,1.53664105]
[1752086521648,0.26155974,665.61,664.91,1.53664105]
[1752086521845,0.26155974,665.61,664.92,1.53664105]
[1752086522045,0.26155974,665.61,664.93,1.53664105]
[1752086522248,0.26155974,665.61,664.94,1.53664105]
[1752086522445,0.26155974,665.61,664.95,1.53664105]
[1752086522650,0.26155974,665.61,664.96,1.53664105]
[1752086522950,3.35702891,665.53,664.87,2.323]
[1752086523249,3.35702891,665.52,664.88,1.53681652]
[1752086523447,3.35702891,665.52,664.89,1.53681652]
[1752086523650,3.35702891,665.52,664.9,1.53681652]
[1752086523951,3.35702891,665.52,664.91,1.53681652]
[1752086524145,3.35702891,665.54,664.92,1.53681652]
[1752086524348,3.35702891,665.54,664.93,1.53681652]
[1752086524644,3.35702891,665.54,664.94,1.53681652]
[1752086524951,3.35702891,665.55,664.95,1.53681652]
[1752086525145,3.35702891,665.54,664.96,1.53681652]
[1752086525346,3.35702891,665.53,664.87,2.323]
[1752086525648,3.35702891,665.53,664.88,1.53718302]
[1752086525849,3.35702891,665.53,664.89,1.53718302]
[1752086526149,3.35702891,665.53,664.9,1.53718302]
[1752086526348,3.35702891,665.52,664.91,1.53718302]
[1752086526546,3.35702891,665.52,664.87,2.323]
[1752086526547,3.35702891,665.52,664.92,1.53718302]
[1752086526844,3.35702891,665.52,664.93,1.53718302]
[1752086527048,3.35702891,665.52,664.94,1.53718302]
[1752086527246,3.35702891,665.52,664.95,1.53718302]
[1752086527546,3.35702891,665.52,664.96,1.53718302]
[1752086527849,3.35702891,665.52,664.97,1.53718302]
[1752086528150,3.35702891,665.52,664.87,2.323]
[1752086528351,3.35702891,665.51,664.88,1.53774071]
[1752086528550,3.35702891,665.55,664.89,1.53774071]
[1752086528851,3.35702891,665.55,664.9,1.53774071]
[1752086529052,3.35702891,665.55,664.91,1.53774071]
[1752086529248,3.35702891,665.54,664.92,1.53774071]
[1752086529447,3.35702891,665.54,664.93,1.53774071]
[1752086529649,3.35702891,665.54,664.94,1.53774071]
[1752086529952,3.35702891,665.54,664.95,1.53774071]
[1752086530147,3.35702891,665.54,664.96,1.53774071]
[1752086530350,3.35702891,665.54,664.97,1.53774071]
[1752086530550,3.35702891,665.54,664.98,1.53774071]
[1752086530754,3.35702891,665.54,664.99,1.53774071]
[1752086530954,3.35702891,665.54,665.0,1.53774071]
[1752086531254,3.35702891,665.54,665.01,1.53774071]
[1752086531451,3.35702891,665.52,665.02,1.53774071]
[1752086531652,3.35702891,665.52,665.03,1.53774071]
[1752086531852,3.35702891,665.52,664.87,2.323]
[1752086532055,3.35702891,665.48,664.88,1.53856712]
[1752086532248,3.35702891,665.48,664.87,2.323]
[1752086532249,3.35702891,665.48,664.89,1.53856712]
[1752086532450,3.35702891,665.48,664.9,1.53856712]
[1752086532654,3.35702891,665.48,664.91,1.53856712]
[1752086532853,3.35702891,665.48,664.92,1.53856712]
[1752086533056,3.35702891,665.48,664.93,1.53856712]
[1752086533352,3.35702891,665.48,664.94,1.53856712]
[1752086533556,3.35702891,665.48,664.95,1.53856712]
[1752086533856,3.35702891,665.48,664.96,1.53856712]
[1752086534156,3.35702891,665.46,664.97,1.53856712]
[1752086534356,3.35702891,665.46,664.98,1.53856712]
[1752086534556,3.35702891,665.46,664.99,1.53856712]
[1752086534757,3.35702891,665.46,665.0,1.53856712]
[1752086534957,3.35702891,665.43,665.01,1.53856712]
[1752086535154,3.35702891,665.43,665.02,1.53856712]
[1752086535358,3.35702891,665.43,665.03,1.53856712]
[1752086535657,3.35702891,665.43,664.83,1.67900056]
[1752086535856,3.35702891,665.43,664.84,1.5385347]
[1752086536055,3.35702891,665.43,664.85,1.5385347]
[1752086536255,3.35702891,665.43,664.86,1.5385347]
[1752086536459,3.35702891,665.43,664.87,1.5385347]
[1752086536756,3.35702891,665.43,664.88,1.5385347]
[1752086537056,3.35702891,665.43,664.89,1.5385347]
[1752086537255,3.35702891,665.43,664.9,1.5385347]
[1752086537456,3.35702891,665.43,664.91,1.5385347]
[1752086537655,3.35702891,665.43,664.92,1.5385347]
[1752086537858,3.35702891,665.45,664.93,1.5385347]
[1752086538059,3.35702891,665.45,664.94,1.5385347]
[1752086538253,3.35702891,665.45,664.95,1.5385347]
[1752086538458,3.35702891,665.47,664.96,1.5385347]
[1752086538657,3.35702891,665.48,664.97,1.5385347]
[1752086538855,3.35702891,665.48,664.98,1.5385347]
[1752086539059,3.35702891,665.48,664.99,1.5385347]
[1752086539257,3.35702891,665.49,665.0,1.5385347]
[1752086539562,3.35702891,665.49,665.01,1.5385347]
[1752086539760,3.35702891,665.49,665.02,1.5385347]
[1752086539959,3.35702891,665.49,665.03,1.5385347]
[1752086540159,3.35702891,665.49,665.04,1.5385347]
[1752086540362,3.35702891,665.49,665.05,1.5385347]
[1752086540560,3.35702891,665.49,664.85,2.306]
[1752086540759,3.35702891,665.49,664.86,1.53847539]
[1752086540958,3.35702891,665.49,664.87,1.53847539]
[1752086541163,3.35702891,665.49,664.88,1.53847539]
[1752086541461,3.35702891,665.49,664.89,1.53847539]
[1752086541765,3.35702891,665.49,664.9,1.53847539]
[1752086541960,3.35702891,665.49,664.91,1.53847539]
[1752086542160,3.35702891,665.49,664.92,1.53847539]
[1752086542360,3.35702891,665.49,664.93,1.53847539]
[1752086542560,3.35702891,665.48,664.94,1.53847539]
[1752086542765,3.35702891,665.48,664.95,1.53847539]
[1752086543064,3.35702891,665.48,664.96,1.53847539]
[1752086543261,3.35702891,665.48,664.97,1.53847539]
[1752086543565,3.35702891,665.48,664.98,1.53847539]
[1752086543762,3.35702891,665.48,664.99,1.53847539]
[1752086544065,3.35702891,665.48,665.0,1.53847539]
[1752086544269,3.35702891,665.48,665.01,1.53847539]
[1752086544566,3.35702891,665.48,665.02,1.53847539]
[1752086544767,3.35702891,665.49,665.03,1.53847539]
[1752086545062,3.35702891,665.49,665.04,1.53847539]
[1752086545268,3.35702891,665.49,665.05,1.53847539]
[1752086545467,3.35702891,665.5,664.85,2.306]
[1752086545667,3.35702891,665.5,664.86,1.53855722]
[1752086545866,3.35702891,665.5,664.87,1.53855722]
[1752086546063,3.35702891,665.5,664.88,1.53855722]
[1752086546262,3.35702891,665.5,664.89,1.53855722]
[1752086546464,3.35702891,665.5,664.9,1.53855722]
[1752086546667,3.35702891,665.51,664.91,1.53855722]
[1752086546869,3.35702891,665.53,664.92,1.53855722]
[1752086547067,3.35702891,665.53,664.93,1.53855722]
[1752086547270,3.35702891,665.53,664.94,1.53855722]
[1752086547472,3.35702891,665.53,664.95,1.53855722]
[1752086547673,3.35702891,665.53,664.96,1.53855722]
[1752086547873,3.35702891,665.52,664.97,1.53855722]
[1752086548074,3.35702891,665.52,664.98,1.53864596]
[1752086548374,3.35702891,665.52,664.99,1.53864596]
[1752086548573,3.35702891,665.53,665.0,1.53864596]
[1752086548771,3.35702891,665.53,665.01,1.53864596]
[1752086549070,3.35702891,665.53,665.02,1.53864596]
[1752086549274,3.35702891,665.53,665.03,1.53864596]
[1752086549569,3.35702891,665.52,665.04,1.53864596]
[1752086549773,3.35702891,665.52,665.05,1.53864596]
[1752086549970,3.35702891,665.52,665.06,1.53864596]
[1752086550175,3.35702891,665.52,664.85,2.306]
[1752086550372,3.35702891,665.52,664.86,1.53932869]
[1752086550571,3.35702891,665.52,664.87,1.53932869]
[1752086550875,3.35702891,665.52,664.88,1.53932869]
[1752086551172,3.35702891,665.52,664.89,1.53932869]
[1752086551376,3.35702891,665.52,664.9,1.53932869]
[1752086551575,3.35702891,665.52,664.91,1.53932869]
[1752086551775,3.35702891,665.52,664.92,1.53932869]
[1752086551976,3.35702891,665.52,664.93,1.53932869]
[1752086552174,3.35702891,665.52,664.94,1.53932869]
[1752086552378,3.35702891,665.52,664.95,1.53932869]
[1752086552574,3.35702891,665.52,664.96,1.53932869]
[1752086552875,3.35702891,665.52,664.97,1.53932869]
[1752086553073,3.35702891,665.52,664.98,1.53932869]
[1752086553277,3.35702891,665.52,664.99,1.53932869]
[1752086553474,3.35702891,665.52,665.0,1.53932869]
[1752086553673,3.35702891,665.52,665.01,1.53932869]
[1752086553878,3.35702891,665.53,665.02,1.53937712]
[1752086554079,3.35702891,665.53,665.03,1.53937712]
[1752086554375,3.35702891,665.52,665.04,1.53937712]
[1752086554581,3.35702891,665.51,665.05,1.53937712]
[1752086554880,3.35702891,665.51,665.06,1.53937712]
[1752086555076,3.35702891,665.51,664.85,2.306]
[1752086555281,3.35702891,665.51,664.86,1.53939602]
[1752086555479,3.35702891,665.52,664.87,1.53939602]
[1752086555683,3.35702891,665.52,664.88,1.53939602]
[1752086555879,3.35702891,665.52,664.89,1.53939602]
[1752086556079,3.35702891,665.52,664.9,1.53939602]
[1752086556283,3.35702891,665.52,664.91,1.53939602]
[1752086556479,3.35702891,665.52,664.92,1.53939602]
[1752086556781,3.35702891,665.52,664.85,2.306]
[1752086556782,3.35702891,665.52,664.93,1.53939602]
[1752086556982,3.35702891,665.52,664.85,2.306]
[1752086556983,3.35702891,665.5,664.94,1.53939602]
[1752086557180,3.35702891,665.5,664.95,1.53939602]
[1752086557478,3.35702891,665.5,664.96,1.53939602]
[1752086557683,3.35702891,665.5,664.97,1.53939602]
[1752086557982,3.35702891,665.5,664.98,1.53939602]
[1752086558280,3.35702891,665.5,664.99,1.53939602]
[1752086558482,3.35702891,665.49,665.0,1.53939602]
[1752086558682,3.35702891,665.48,665.01,1.53939602]
[1752086558879,3.35702891,665.48,665.02,1.53939602]
[1752086559183,3.35702891,665.54,665.03,1.53939602]
[1752086559480,3.35702891,665.54,665.04,1.53939602]
[1752086559681,3.35702891,665.54,664.72,0.26156957]
[1752086559879,3.35702891,665.54,664.81,1.68112756]
[1752086560181,3.35702891,665.54,664.82,1.53945934]
[1752086560382,3.35702891,665.54,664.83,1.53945934]
[1752086560679,3.35702891,665.54,664.84,1.53945934]
[1752086560879,3.35702891,665.57,664.85,1.53945934]
[1752086561083,3.35702891,665.57,664.86,1.53945934]
[1752086561278,3.35702891,665.57,664.87,1.53945934]
[1752086561478,3.35702891,665.57,664.88,1.53945934]
[1752086561683,3.35702891,665.57,664.89,1.53945934]
[1752086561983,3.35702891,665.57,664.9,1.53945934]
[1752086562180,3.35702891,665.56,664.91,1.53945934]
[1752086562379,3.35702891,665.56,664.92,1.53945934]
[1752086562578,3.35702891,665.56,664.93,1.53945934]
[1752086562879,3.35702891,665.59,664.94,1.53945934]
[1752086563080,3.35702891,665.59,664.95,1.53945934]
[1752086563281,3.35702891,665.59,664.96,1.53945934]
[1752086563479,0.26155974,665.61,664.87,1.821]
[1752086563480,3.35702891,665.6,664.97,1.53945934]
[1752086563682,3.35702891,665.6,664.98,1.53945934]
[1752086563879,3.35702891,665.6,664.99,1.53945934]
[1752086564080,3.35702891,665.6,665.0,1.53945934]
[1752086564281,3.35702891,665.6,665.01,1.53945934]
[1752086564483,3.35702891,665.6,665.02,1.53945934]
[1752086564787,3.35702891,665.6,665.03,1.53945934]
[1752086564984,3.35702891,665.6,665.04,1.53945934]
[1752086565282,3.35702891,665.6,665.05,1.53945934]
[1752086565486,3.35702891,665.59,665.06,1.53945934]
[1752086565686,3.35702891,665.59,664.87,1.821]
[1752086565888,3.35702891,665.59,664.88,1.53953908]
[1752086566085,3.35702891,665.59,664.89,1.53953908]
[1752086566287,3.35702891,665.59,664.9,1.53953908]
[1752086566485,0.26155974,665.61,664.91,1.53953908]
[1752086566789,0.26155974,665.61,664.92,1.53953908]
[1752086566989,0.26155974,665.61,664.93,1.53953908]
[1752086567189,0.26155974,665.61,664.94,1.53953908]
[1752086567489,0.26155974,665.61,664.95,1.53953908]
[1752086567789,0.26155974,665.61,664.96,1.53953908]
[1752086567986,0.26155974,665.61,664.97,1.53953908]
[1752086568192,0.26155974,665.61,664.98,1.53953908]
[1752086568389,0.26155974,665.61,664.99,1.53953908]
[1752086568589,3.35702891,665.59,665.0,1.53953908]
[1752086568789,3.35702891,665.59,665.01,1.53953908]
[1752086568988,3.35702891,665.58,664.87,1.821]
[1752086569192,3.35702891,665.57,664.88,1.53961255]
[1752086569390,3.35702891,665.57,664.89,1.53961255]
[1752086569594,3.35702891,665.57,664.9,1.53961255]
[1752086569791,3.35702891,665.57,664.91,1.53961255]
[1752086569994,3.35702891,665.57,664.92,1.53961255]
[1752086570190,3.35702891,665.57,664.93,1.53961255]
[1752086570492,3.35702891,665.57,664.94,1.53961255]
[1752086570696,3.35702891,665.55,664.95,1.53961255]
[1752086570995,3.35702891,665.55,664.96,1.53961255]
[1752086571190,3.35702891,665.55,664.97,1.53961255]